Cogmind - Beta 15 @@@ ROGUE MODE // 2025.08.29 @ 02:58:39 Player: delto Result: Destroyed by Y-45 Defender with Beam Rifle Performance ------------- Evolutions (2) 1000 Regions Visited (5) 1000 Robots Destroyed (38) 190 Value Destroyed (1239) 1239 Prototype IDs (2) 40 Alien Tech Used (0) 0 Bonus (0) 0 TOTAL SCORE: 3469 Bonus ------- None Cogmind --------- Core Integrity 0/550 Matter 247/300 Energy 260/280 System Corruption 0% Temperature Cool (9) Movement Flying (195) Ox2 Location -8/Materials Parts ------- > --- POWER (2) -------- Heavy Ion Engine > --- PROPULSION (3) --- Cesium-ion Thruster > --- UTILITY (4) ------ Light Armor Plating > --- WEAPON (2) ------- Mini Grenade Launcher > --- INVENTORY (5) ---- (None) Peak State ------------ > --- POWER ------------ Light Nuclear Core Light Nuclear Core > --- PROPULSION ------- Armored Wheel Armored Wheel Armored Wheel > --- UTILITY ---------- Small Storage Unit Medium Matter Pod Visual Processing Unit Improved Terrain Scanner > --- WEAPON ----------- Autogun Autogun > --- INVENTORY -------- Ion Engine Ion Engine Armored Treads Armored Wheel Heat Sink Improved Heat Sink [Rating: 24] Favorites ----------- Power Ion Engine Engine Ion Engine Power Core Light Nuclear Core Propulsion Armored Wheel Treads Light Treads Wheel Armored Wheel Flight Unit Cesium-ion Thruster Utility Improved Terrain Scanner Device Improved Terrain Scanner Storage Small Storage Unit Processor Visual Processing Unit Hackware Hacking Suite Protection Light Armor Plating Weapon Autogun Energy Gun Particle Gun Ballistic Gun Autogun Build | -11 -10 -10 -9 -9 -8 ------- Run | Yrd Mat Min Mat Min Mat Slots Evolved 4 | . . . 2 . 2 Power 1 | . . . 1 . . Propulsion 1 | . . . . . 1 Utility 2 | . . . 1 . 1 Weapon . | . . . . . . Parts Attached 36 | 7 8 . 5 . 16 Power 8 | 1 3 . . . 4 Engine 5 | 1 3 . . . 1 Core 3 | . . . . . 3 Reactor . | . . . . . . Propulsion 10 | 2 2 . 2 . 4 Treads 3 | 1 1 . . . 1 Leg . | . . . . . . Wheel 6 | 1 1 . 2 . 2 Hover . | . . . . . . Flight 1 | . . . . . 1 Utility 9 | 2 2 . 1 . 4 Device 4 | 1 1 . . . 2 Storage 2 | 1 . . . . 1 Processor 1 | . . . 1 . . Hackware 1 | . 1 . . . . Protection 1 | . . . . . 1 Artifact . | . . . . . . Weapon 9 | 2 1 . 2 . 4 Energy Gun 1 | . 1 . . . . Energy Cannon . | . . . . . . Ballistic Gun 7 | 2 . . 2 . 3 Ballistic Cannon . | . . . . . . Launcher 1 | . . . . . 1 Special Weapon . | . . . . . . Impact Weapon . | . . . . . . Slashing Weapon . | . . . . . . Piercing Weapon . | . . . . . . Special Melee Weapon . | . . . . . . Unidentified Prototypes 1 | . . . . . 1 Parts Lost 22 | . 2 . 3 . 17 Power 6 | . 1 . . . 5 Propulsion 5 | . . . 1 . 4 Utility 5 | . 1 . 1 . 3 Weapon 6 | . . . 1 . 5 Highest Loss Streak 15 | . 2 . 2 . 15 To Critical Strikes 1 | . . . . . 1 Average Backups 2 | 2 3 2 1 3 3 Power . | . . 1 . . . Propulsion 1 | 1 1 . 1 2 1 Utility . | . . 1 . 1 1 Weapon . | . . . . . . Tool/Special . | . . . . . . Unused Backups 4 | 2 1 . . . 1 Power . | . . . . . . Propulsion 2 | 2 . . . . . Utility . | . . . . . . Weapon 2 | . 1 . . . 1 Tool/Special . | . . . . . . Average Slot Usage (%) 90 | . 100 100 91 100 83 Engine 12 | . 14 14 22 22 8 Core 3 | . . . . . 6 Treads 6 | . 16 14 4 . . Wheel 17 | . 11 14 17 22 20 Device 14 | . 17 28 20 11 8 Storage 10 | . 7 . 5 11 14 Processor 5 | . . . 5 11 7 Energy Gun 3 | . 4 14 8 . . Ballistic Gun 15 | . 23 14 6 22 14 Peak Build Rating 24 | 9 11 10 16 16 24 Average Rating 14 | 5 9 10 13 16 18 On Entrance 10 | . 9 10 10 16 16 Naked Turns 9 | . . . . . 9 Heaviest Build 24 | 15 16 12 22 22 24 Greatest Support 40 | 10 40 10 24 24 36 Greatest Overweight (x) 3 | 1 1 1 2 . 3 Average Overweight (x) . | . . 1 . . . Largest Inventory Capacity 8 | 8 8 5 8 8 8 Average Capacity 6 | 7 6 5 6 8 7 Most Carried 6 | 6 5 2 4 4 6 Average Carried 2 | 2 3 2 1 3 3 Final Capacity 8 | 8 5 5 8 8 5 Final Carried 4 | 4 2 2 3 4 . Class Distribution -------------------- 55% | Mutant 44% | Scavenger-Mutant Dominant Class ---------------- Mutant | -10/Materials Mutant | -10/Mines Scavenger-Mutant | -9/Materials Mutant | -9/Mines Scavenger-Mutant | -8/Materials Resources | -11 -10 -10 -9 -9 -8 ----------- Run | Yrd Mat Min Mat Min Mat Matter Collected 1263 | 240 192 20 40 69 702 Remotely . | . . . . . . Salvage Created 1382 | 28 274 81 158 . 841 Parts 88 | 3 21 2 18 . 44 Haulers Intercepted . | . . . . . . Recyclers Shooed 1 | . . . . . 1 Parts Field Recycled . | . . . . . . Retrieved Matter . | . . . . . . Parts Self-Destructed . | . . . . . . Prevented . | . . . . . . Kills | -11 -10 -10 -9 -9 -8 ------- Run | Yrd Mat Min Mat Min Mat Combat Hostiles Destroyed 32 | . 8 2 5 . 17 Guns 32 | . 8 2 5 . 17 Classes Destroyed 8 | 1 3 . 2 . 2 Worker 1 | . . . . . 1 Tunneler 1 | 1 . . . . . Operator 2 | . 1 . . . 1 Watcher 2 | . . . 2 . . Swarmer 8 | . 3 . 3 . 2 Grunt 18 | . 5 2 1 . 10 Sentry 3 | . . . 1 . 2 Specialist 3 | . . . . . 3 Best Kill Streak 5 | 1 4 2 5 . 4 Combat Bots Only 4 | . 4 2 3 . 3 Max Kills in Single Turn 1 | 1 1 1 1 . 1 Gunslinging . | . . . . . . Exploded . | . . . . . . Melee . | . . . . . . Uniques/NPCs Destroyed . | . . . . . . Combat | -11 -10 -10 -9 -9 -8 -------- Run | Yrd Mat Min Mat Min Mat Hostile Shots Fired 384 | . 63 16 35 . 270 Missed 136 | . 17 4 10 . 105 Hits 248 | . 46 12 25 . 165 Projectile 248 | . 46 12 25 . 165 Critical Strikes 10 | . 2 . 1 . 7 Damage Taken 3171 | . 548 159 235 . 2229 Core 763 | . 140 31 39 . 553 Absorbed by Shields . | . . . . . . Core Remaining (%) 73 | 100 . 31 . 90 . Volleys Fired 163 | 2 28 12 22 . 99 Largest 2 | 2 2 1 2 . 2 Hottest 65 | 40 65 65 65 . 46 Shots Fired 239 | 4 43 12 26 . 154 Gun 239 | 4 43 12 26 . 154 Cannon . | . . . . . . Launcher . | . . . . . . Special . | . . . . . . Kinetic 196 | 4 30 . 8 . 154 Thermal 43 | . 13 12 18 . . Explosive . | . . . . . . Electromagnetic . | . . . . . . Robot Hit Streak 11 | 4 8 4 8 . 11 Robot Miss Streak 5 | . 2 3 4 . 5 Penetration Max . | . . . . . . Secondary Targets 5 | . 2 . . . 3 Max Gunslinging Chain 1 | . 1 . . . 1 Shots Hit Robots 157 | 4 32 6 18 . 97 Core Hits 72 | 1 15 3 10 . 43 Critical Kills 1 | . . . . . 1 Critical Parts Destroyed . | . . . . . . Critical Strikes 1 | . . . . . 1 Destroy 1 | . . . . . 1 Melee Attacks . | . . . . . . Impact . | . . . . . . Slashing . | . . . . . . Piercing . | . . . . . . Sneak Attacks . | . . . . . . Combat Hostiles . | . . . . . . Follow-up Attacks . | . . . . . . Damage Inflicted 2234 | 45 430 94 275 . 1390 Guns 2232 | 45 430 94 275 . 1388 Cannons . | . . . . . . Explosions . | . . . . . . Melee . | . . . . . . Ramming 2 | . . . . . 2 Kinetic 1811 | 45 301 . 77 . 1388 Thermal 421 | . 129 94 198 . . Explosive . | . . . . . . Electromagnetic . | . . . . . . Impact . | . . . . . . Slashing . | . . . . . . Piercing . | . . . . . . Highest Corruption . | . . . . . . Average Corruption . | . . . . . . Corruption Purged . | . . . . . . Corruption Blocked . | . . . . . . Overload Shots . | . . . . . . Overflow Damage . | . . . . . . Projectiles . | . . . . . . Explosions . | . . . . . . Melee . | . . . . . . Knockbacks . | . . . . . . Impact . | . . . . . . Kinetic . | . . . . . . Secondary . | . . . . . . Self-Inflicted Damage 1 | . . . . . 1 Shots . | . . . . . . Rammed 1 | . . . . . 1 Targets Rammed 1 | . . . . . 1 Kicked . | . . . . . . Crushed . | . . . . . . Highest Temperature 138 | . 42 138 48 . 91 Average Temperature 26 | . 11 69 16 . 27 Received Heat Transfer 1095 | . 318 90 57 . 630 Siege Activations . | . . . . . . Martial Activations . | . . . . . . Shielding Activations . | . . . . . . Robots Disrupted . | . . . . . . Combat Hostiles . | . . . . . . Robots Corrupted . | . . . . . . Combat Hostiles . | . . . . . . Parts Fried . | . . . . . . Impact Corruptions . | . . . . . . Robots Melted . | . . . . . . Combat Hostiles . | . . . . . . Parts Melted 3 | . 1 1 1 . . Heat Transferred 1036 | . 333 222 481 . . Parts Sabotaged . | . . . . . . Parts Stolen . | . . . . . . Parts Stripped . | . . . . . . Power Chain Reactions . | . . . . . . Alert | -11 -10 -10 -9 -9 -8 ------- Run | Yrd Mat Min Mat Min Mat Maximum Alert Level . | . . . . . . Low Security (%) 100 | 100 100 100 100 100 100 Level 1 . | . . . . . . Level 2 . | . . . . . . Level 3 . | . . . . . . Level 4 . | . . . . . . Level 5 . | . . . . . . High Security . | . . . . . . Max Security . | . . . . . . Peak Influence 160 | 5 160 113 58 14 106 Initial 58 | . . 58 24 14 1 Average 47 | . 50 85 38 10 47 Influence Increases 905 | 5 231 65 134 . 470 Destroy 0b10 Robot/C 640 | . 160 40 100 . 340 Destroy 0b10 Robot/NC 30 | 5 5 . 10 . 10 Destroy Leader 134 | . 30 10 24 . 70 Successful Hack 11 | . 6 . . . 5 Disable Machine 15 | . . 15 . . . Lose Combat Pursuer 75 | . 30 . . . 45 Influence Decreases 817 | 5 81 152 159 34 386 Entered New Map 158 | . . 92 39 24 3 Time Decay 489 | 5 78 60 90 10 246 Lost Part 170 | . 3 . 30 . 137 Squads Dispatched 9 | . 2 . 1 . 6 Investigation 1 | . 1 . . . . Extermination . | . . . . . . Reinforcement 6 | . 1 . 1 . 4 Assault . | . . . . . . Garrison 2 | . . . . . 2 Intercept . | . . . . . . Searches Triggered . | . . . . . . Construction Impeded . | . . . . . . Haulers Reinforced . | . . . . . . Active Scanning Responses . | . . . . . . Cargo Convoy Interrupts . | . . . . . . Stealth | -11 -10 -10 -9 -9 -8 --------- Run | Yrd Mat Min Mat Min Mat Distress Signals 5 | . 1 . . . 4 Communications Jammed . | . . . . . . Distress Signals . | . . . . . . Times Spotted 57 | . 15 2 8 . 32 Peak Tracking Total 8 | . 4 2 3 . 8 Tactical Retreats 4 | . 2 . . . 2 Traps | -11 -10 -10 -9 -9 -8 ------- Run | Yrd Mat Min Mat Min Mat Traps Triggered 2 | . . . . . 2 Indirectly . | . . . . . . Trap Hack Attempts . | . . . . . . Triggered . | . . . . . . Disarmed . | . . . . . . Reprogrammed . | . . . . . . Reused . | . . . . . . Traps Extracted . | . . . . . . Installed . | . . . . . . Triggered . | . . . . . . Machines | -11 -10 -10 -9 -9 -8 ---------- Run | Yrd Mat Min Mat Min Mat Machines Disabled 1 | . . 1 . . . Max in Single Turn 1 | . . 1 . . . Machines Repaired . | . . . . . . Machines Dismantled . | . . . . . . Machines Sabotaged . | . . . . . . Overloaded Fab Kills . | . . . . . . Hacking | -11 -10 -10 -9 -9 -8 --------- Run | Yrd Mat Min Mat Min Mat Machines Accessed 5 | . 3 . . . 2 Terminals 4 | . 3 . . . 1 Fabricators . | . . . . . . Repair Stations . | . . . . . . Recycling Units . | . . . . . . Scanalyzers 1 | . . . . . 1 Garrison Access . | . . . . . . Total Hacks 11 | . 7 . . . 4 Successful 9 | . 5 . . . 4 Failed 2 | . 2 . . . . Catastrophic . | . . . . . . Database Lockouts . | . . . . . . Manual 8 | . 7 . . . 1 Terminals 8 | . 7 . . . 1 Fabricators . | . . . . . . Repair Stations . | . . . . . . Recycling Units . | . . . . . . Scanalyzers 3 | . . . . . 3 Garrison Access . | . . . . . . Terminal Hacks 2 | . 2 . . . . Record 1 | . 1 . . . . Zone Layout 1 | . 1 . . . . Fabricator Hacks . | . . . . . . Repair Station Hacks . | . . . . . . Recycling Unit Hacks . | . . . . . . Scanalyzer 3 | . . . . . 3 Insert Component 2 | . . . . . 2 Analyze 1 | . . . . . 1 Garrison Access Hacks . | . . . . . . Unauthorized Hacks 4 | . 3 . . . 1 Terminals 4 | . 3 . . . 1 Botnet 4 | . 3 . . . 1 Fabricators . | . . . . . . Repair Stations . | . . . . . . Recycling Units . | . . . . . . Scanalyzers . | . . . . . . Garrison Access . | . . . . . . Data Cores Recovered 1 | . 1 . . . . Used . | . . . . . . Hacking Detections 2 | . 2 . . . . Full Trace Events . | . . . . . . Feedback Events . | . . . . . . Feedback Blocked . | . . . . . . Robot Schematics Acquired . | . . . . . . Robots Built . | . . . . . . Authchips . | . . . . . . Time . | . . . . . . Total Robot Build Rating . | . . . . . . Part Schematics Acquired 1 | . . . . . 1 Parts Built . | . . . . . . Authchips . | . . . . . . Time . | . . . . . . Total Part Build Rating . | . . . . . . Parts Repaired . | . . . . . . Time . | . . . . . . Parts Recycled . | . . . . . . Recycled Matter . | . . . . . . Retrieved Matter . | . . . . . . Retrieved Components . | . . . . . . Parts Scanalyzed 1 | . . . . . 1 Part Schematics Acquired 1 | . . . . . 1 Parts Damaged . | . . . . . . Bothacking | -11 -10 -10 -9 -9 -8 ------------ Run | Yrd Mat Min Mat Min Mat Used RIF Installer . | . . . . . . Robots Hacked . | . . . . . . Non-combat . | . . . . . . Combat . | . . . . . . Robot Hacks Applied . | . . . . . . Relay Couplers Released . | . . . . . . Fabnet Peak Effective % . | . . . . . . Robots Rewired . | . . . . . . Allies Hacked . | . . . . . . Hacks Repelled . | . . . . . . Allies | -11 -10 -10 -9 -9 -8 -------- Run | Yrd Mat Min Mat Min Mat Total Allies . | . . . . . . Largest Group . | . . . . . . Highest-Rated Group . | . . . . . . Highest-Rated Ally . | . . . . . . Total Orders . | . . . . . . Ally Attacks . | . . . . . . Total Damage . | . . . . . . Kills . | . . . . . . Allies Corrupted . | . . . . . . Allies Melted . | . . . . . . Intel | -11 -10 -10 -9 -9 -8 ------- Run | Yrd Mat Min Mat Min Mat Active Infowar (turns) 1178 | 24 276 127 183 29 539 Optics 663 | . . . 95 29 539 Terrain 1085 | 24 276 127 183 29 446 Robot Analysis Total . | . . . . . . Derelict Logs Recovered 2 | . . 2 . . . Drone Launches . | . . . . . . Drone Recoveries . | . . . . . . Exploration | -11 -10 -10 -9 -9 -8 ------------- Run | Yrd Mat Min Mat Min Mat Turns Passed 1317 | 75 276 127 183 29 627 Spaces Moved 876 | 59 181 109 120 32 375 Core 46 | 5 . . . . 41 Treads 59 | . 27 . 6 . 26 Legs . | . . . . . . Wheels 764 | 54 154 109 114 32 301 Hover . | . . . . . . Flight 7 | . . . . . 7 Fastest Speed 50 | 50 80 95 90 90 50 Average Speed 96 | 88 98 95 100 90 95 Slowest Speed 240 | 100 160 95 240 90 200 Overloaded Moves . | . . . . . . Propulsion Burnouts . | . . . . . . Robots Hopped . | . . . . . . Potential Cave-ins . | . . . . . . Cave-ins Triggered . | . . . . . . Exploration Rate (%) 19 | 4 26 34 14 10 26 Regions Visited 5 Branch Regions 2 Pre-discovered Areas 1 | . . 1 . . . Known Exits Taken . | . . . . . . Unknown Exits Taken 5 | 1 1 1 1 1 . Scrap Searched 2 | . . 1 . 1 . Spaces Dug . | . . . . . . Terrain Destroyed . | . . . . . . Melee . | . . . . . . Projectile . | . . . . . . AOE . | . . . . . . Terrain Rammed . | . . . . . . Walls Destroyed . | . . . . . . Machines Disabled . | . . . . . . Actions | -11 -10 -10 -9 -9 -8 --------- Run | Yrd Mat Min Mat Min Mat Total 1134 | 75 234 120 158 32 515 Wait 26 | . 9 . . . 17 Move 871 | 58 180 108 119 31 375 Hop . | . . . . . . Pick Up 17 | 6 3 . 4 1 3 Fast Attach 19 | 7 . . 4 . 8 Attach 14 | . 2 . 4 . 8 Detach 3 | . . . 3 . . Swap 10 | . 7 . . . 3 Drop 10 | 2 5 . 2 . 1 Fire 163 | 2 28 12 22 . 99 Melee . | . . . . . . Ram 1 | . . . . . 1 Kick . | . . . . . . Crush . | . . . . . . Escape Stasis . | . . . . . . Rewire . | . . . . . . Trap . | . . . . . . Miscellaneous . | . . . . . . Route ------- -11/Scrapyard -10/Materials -10/Mines -9/Materials -9/Mines -8/Materials History --------- Turn | Location | Event 9 | -11/Scrapyard | Discovered new exit (range 16) 76 | -11/Scrapyard | Entered Materials 77 | -10/Materials | Met a group of wandering Federalists 172 | -10/Materials | Discovered new exit (range 12) 288 | -10/Materials | Core integrity fell below 50% 352 | -10/Materials | Entered Mines 404 | -10/Mines | Learned Materials stockpile data 451 | -10/Mines | Learned location of Storage (-7) 470 | -10/Mines | Discovered new exit (range 11) 479 | -10/Mines | Entered Materials 479 | -9/Materials | Evolved 2 slots: Power x1, Utility x1 632 | -9/Materials | Discovered new exit (range 14) 662 | -9/Materials | Entered Mines 685 | -9/Mines | Discovered new exit (range 6) 691 | -9/Mines | Entered Materials 691 | -8/Materials | Evolved 2 slots: Propulsion x1, Utility x1 1172 | -8/Materials | Garrison activated, responded to threat 1180 | -8/Materials | Core integrity fell below 50% 1249 | -8/Materials | Lost 15 parts (4p4n3u4w) 1260 | -8/Materials | Core integrity fell below 20% 1318 | -8/Materials | Destroyed by Y-45 Defender with Beam Rifle Last Messages --------------- 01243_ Acquired Autogun. 01248_ W-25 Informer sends out distress signal. 01255_ Acquired Cesium-ion Thruster. 01259_ Critical hit (Burn: +37). 01260_ X-57 Shotgunner destroyed. 01263_ Critical hit (Burn: +37). 01272_ G-47 Trooper destroyed. 01274_ R-06 Scavenger collects Aluminum Leg. 01274_ Destroyed Tractor Beam. 01281_ R-06 Scavenger collects Imp. Heat Sink. 01284_ R-06 Scavenger collects Lgt. Nuclear Core. 01287_ R-06 Scavenger collects Hrd. Medium Armor Plating. 01292_ Critical hit (Burn: +37). 01296_ W-25 Informer sends out distress signal. 01298_ Y-45 Defender destroyed. 01301_ G-47 Trooper destroyed. 01311_ Acquired Lgt. Armor Plating. 01312_ Acquired 96 matter. 01314_ Autogun destroyed. 01318_ Acquired Mni. Grenade Launcher. Map ----- +----------------------------------------------------+ | # """"" # ##+################ | | # """"" # =!! | | # """ + | | # # ^T | | # # """ ######### | | # !# """ #???????? | | # # """ #???????# | | # ! # """ #???#???? | | #########! #???#???? | | ????????# ######### | | ????????# | | ????????# | | ????????# | | ????????# ######### | | ????????# #######+###???????? | | ????????## #???????????#?????? | | ?????????# #???????? ??????#?? | | ?????????# #?????????????#???? | | ?????????# #?????????????????? | | ??######## #?????????????????? | | ??# [# #???????????#?????? | | ??# ==#= #??????????#??????? | | ??# ! Y/%! #?????????????????? | | ??# """ =#* #??????????#??????? | | ??# """ *# #???????????????##? | | ??# """ @# #????????????????#? | | ??######## #??????????????#?#? | | ?????????# #?????????????????? | | ?????????# #?????????????????# | | ?????????# #?????????????????? | | ?????????# ?????????????#?#?# | | ?????????+ ???????????????#? | | ?????????# ?????????????#??? | | ??????????# ### !????????#????#?? | | ??????????? ???# ??????????????# | | ??????????? ???????????????????#? | | ??????????? ????????????????????? | | ??????????????????????????? ???? | | ???????????????????????????? ?? | | ????????????????????????????????? | | ???????????????????????????? ?? ? | | ??????????????????????? ?? ???" ? | | ???????????????????????????? ???? | | ????????????????????????????????? | | ????????????????????????? ???? ? | | ???????????????????????????#????? | | ????????????????????????????????? | | ????????????????????????????????? | | ????????????????????????????????? | | ????????????????????????????????? | +----------------------------------------------------+ Best States ------------- Heat Dissipation 55 Energy Generation 23 Energy Capacity 400 Matter Stores 395 Matter Capacity 400 Sight Range 18 Terrain Scan Range 16 Terrain Scan Density 10 Evasion (%) 50 Recoil Reduction 2 Offensive Hacking 10 Item Schematics ----------------- Arm. Wheel | -8/Materials | Scanalyzed Robot Schematics ------------------ None Fabricated ------------ Nothing Repaired ---------- Nothing Alien Tech Used ----------------- None Achievements -------------- None Challenges ------------ None Game ------ Seed FieldHypertargetingParser Manual? 0 Play Time 00:34:52 Cumulative 55.5 hours Start 2025.08.28 @ 17:07:33 End 2025.08.29 @ 02:58:39 Sessions 5 Manual Loads 0 Difficulty Rogue Special Mode None Game No. 71 Rogue 71 Adventurer 0 Explorer 0 Win Type - Total 0 Types 0/0/0/0/0/0/0/0/0/0 Lore% 11 Gallery% 34 Achievement% 29 Wizard Run 0 Options --------- Layout 0 ASCII 0 Keyboard 0 Movement Mouse Keybinds 0 Fullscreen 1 Font 24/Smallcaps Map View 76x50 Zoom Use 0% Tactical HUD 1 Map Filters NONE Filters NONE Steam 1 RUN: 174bf08d-edc5-41a5-9118-6d7406de813b